fUST/lending_fUST_20250531
["ID","MTS","AMOUNT","RATE_DAILY","PERIOD"]
[363359594,1748693444119,-473.92,0.00016712,2]
[363359595,1748693444129,-430.0,0.00016712,2]
[363359596,1748693444139,-621.82,0.00016712,2]
[363359597,1748693444148,-533.76,0.00016712,2]
[363359598,1748693444158,-430.0,0.00016712,2]
[363359599,1748693444170,-390.9083913,0.00016712,2]
[363359600,1748693444183,-39.0916087,0.00016712,2]
[363359601,1748693444193,-430.0,0.00016712,2]
[363359602,1748693444204,-475.096736,0.00016712,2]
[363359603,1748693444214,-430.0,0.00016712,2]
[363359604,1748693444224,-430.0,0.00016712,2]
[363359605,1748693444234,-397.92,0.00016712,2]
[363359606,1748693444244,-430.0,0.00016712,2]
[363359607,1748693444253,-430.0,0.00016712,2]
[363359608,1748693444263,-430.0,0.00016712,2]
[363359609,1748693444272,-430.0,0.00016712,2]
[363359610,1748693444282,-430.0,0.00016712,2]
[363359611,1748693444291,-430.0,0.00016712,2]
[363359612,1748693444300,-430.0,0.00016712,2]
[363359613,1748693444310,-430.0,0.00016712,2]
[363359614,1748693444320,-430.0,0.00016712,2]
[363359615,1748693444330,-375.56312031,0.00016712,2]
[363359616,1748693444341,-430.0,0.00016712,2]
[363359617,1748693444350,-430.0,0.00016712,2]
[363359618,1748693444360,-430.0,0.00016712,2]
[363359619,1748693444370,-430.0,0.00016712,2]
[363359620,1748693444380,-430.0,0.00016712,2]
[363359621,1748693444390,-430.0,0.00016712,2]
[363359622,1748693444399,-430.0,0.00016712,2]
[363359623,1748693444409,-430.0,0.00016712,2]
[363359624,1748693444419,-430.0,0.00016712,2]
[363359625,1748693444428,-430.0,0.00016712,2]
[363359626,1748693444438,-430.0,0.00016712,2]
[363359627,1748693444448,-430.0,0.00016712,2]
[363359628,1748693444457,-430.0,0.00016712,2]
[363359629,1748693444467,-430.0,0.00016712,2]
[363359630,1748693444477,-430.0,0.00016712,2]
[363359631,1748693444487,-430.0,0.00016712,2]
[363359632,1748693444497,-500.0,0.00016846,2]
[363359633,1748693444506,-300.0,0.00016894,2]
[363359634,1748693444516,-430.0,0.00016986,2]
[363359635,1748693444526,-433.28171749,0.00016986,2]
[363359636,1748693444536,-430.0,0.00016986,2]
[363359637,1748693444546,-430.0,0.00016986,2]
[363359638,1748693444556,-430.0,0.00016986,2]
[363359639,1748693444565,-430.0,0.00016986,2]
[363359640,1748693444575,-430.0,0.00016986,2]
[363359641,1748693444585,-430.0,0.00016986,2]
[363359642,1748693444594,-430.0,0.00016986,2]
[363359643,1748693444604,-356.45,0.00016986,2]
[363359644,1748693444618,-430.0,0.00016986,2]
[363359645,1748693444628,-430.0,0.00016986,2]
[363359646,1748693444638,-430.0,0.00016986,2]
[363359647,1748693444647,-430.0,0.00016986,2]
[363359648,1748693444657,-430.0,0.00016986,2]
[363359649,1748693444667,-430.0,0.00016986,2]
[363359650,1748693444677,-545.73,0.00016986,2]
[363359651,1748693444686,-430.0,0.00016986,2]
[363359652,1748693444696,-430.0,0.00016986,2]
[363359653,1748693444706,-430.0,0.00016986,2]
[363359654,1748693444716,-430.0,0.00016986,2]
[363359655,1748693444725,-430.0,0.00016986,2]
[363359656,1748693444735,-430.0,0.00016986,2]
[363359657,1748693444744,-431.38542662,0.00016986,2]
[363359658,1748693444754,-430.0,0.00016986,2]
[363359659,1748693444766,-430.0,0.00016986,2]
[363359660,1748693444776,-430.0,0.00016986,2]
[363359661,1748693444785,-430.0,0.00016986,2]
[363359662,1748693444797,-430.0,0.00016986,2]
[363359663,1748693444807,-485.91,0.00016986,2]
[363359664,1748693444816,-430.0,0.00016986,2]
[363359665,1748693444825,-475.3,0.00016986,2]
[363359666,1748693444836,-430.0,0.00016986,2]
[363359667,1748693444845,-430.0,0.00016986,2]
[363359668,1748693444855,-430.0,0.00016986,2]
[363359669,1748693444864,-430.0,0.00016986,2]
[363359670,1748693444873,-430.0,0.00016986,2]
[363359671,1748693444883,-430.0,0.00016986,2]
[363359672,1748693444892,-621.82,0.00016986,2]
[363359673,1748693444902,-533.76,0.00016986,2]
[363359674,1748693444912,-430.0,0.00016986,2]
[363359675,1748693444922,-430.0,0.00016986,2]
[363359676,1748693444932,-430.0,0.00016986,2]
[363359677,1748693444942,-430.0,0.00016986,2]
[363359678,1748693444951,-430.0,0.00016986,2]
[363359679,1748693444961,-430.0,0.00016986,2]
[363359680,1748693444971,-430.0,0.00016986,2]
[363359681,1748693444983,-430.0,0.00016986,2]
[363359682,1748693444993,-565.13,0.00016986,2]
[363359683,1748693445003,-430.0,0.00016986,2]
[363359684,1748693445014,-430.0,0.00016986,2]
[363359685,1748693445025,-430.0,0.00016986,2]
[363359686,1748693445035,-430.0,0.00016986,2]
[363359687,1748693445045,-430.0,0.00016986,2]
[363359688,1748693445057,-430.0,0.00016986,2]
[363359689,1748693445067,-430.0,0.00016986,2]
[363359690,1748693445077,-430.0,0.00016986,2]
[363359691,1748693445087,-1000.0,0.00017021,2]
[363359692,1748693445097,-430.0,0.0001726,2]
[363359693,1748693445108,-430.0,0.0001726,2]
[363359694,1748693445118,-430.0,0.0001726,2]
[363359695,1748693445128,-430.0,0.0001726,2]
[363359696,1748693445137,-430.0,0.0001726,2]
[363359697,1748693445147,-430.0,0.0001726,2]
[363359698,1748693445156,-430.0,0.0001726,2]
[363359699,1748693445166,-430.0,0.0001726,2]
[363359700,1748693445175,-430.0,0.0001726,2]
[363359701,1748693445185,-430.0,0.0001726,2]
[363359702,1748693445194,-430.0,0.0001726,2]
[363359703,1748693445204,-430.0,0.0001726,2]
[363359704,1748693445214,-199.35,0.0001726,2]
[363359705,1748693445223,-485.91,0.0001726,2]
[363359706,1748693445233,-430.0,0.0001726,2]
[363359707,1748693445242,-430.0,0.0001726,2]
[363359708,1748693445252,-430.0,0.0001726,2]
[363359709,1748693445261,-430.0,0.0001726,2]
[363359710,1748693445271,-430.0,0.0001726,2]
[363359711,1748693445281,-168.41,0.0001726,2]
[363359712,1748693445291,-430.0,0.0001726,2]
[363359713,1748693445301,-621.82,0.0001726,2]
[363359714,1748693445310,-533.76,0.0001726,2]
[363359715,1748693445321,-430.0,0.0001726,2]
[363359716,1748693445331,-430.0,0.0001726,2]
[363359717,1748693445341,-382.57,0.0001726,2]
[363359718,1748693445349,-430.0,0.0001726,2]
[363359719,1748693445359,-430.0,0.0001726,2]
[363359720,1748693445370,-430.0,0.0001726,2]
[363359721,1748693445379,-430.0,0.0001726,2]
[363359722,1748693445390,-193.24,0.0001726,2]
[363359723,1748693445400,-430.0,0.0001726,2]
[363359724,1748693445409,-430.0,0.0001726,2]
[363359725,1748693445419,-430.0,0.0001726,2]
[363359726,1748693445429,-430.0,0.0001726,2]
[363359727,1748693445439,-430.0,0.0001726,2]
[363359728,1748693445448,-430.0,0.0001726,2]
[363359729,1748693445458,-270.0,0.00017534,2]
[363359730,1748693445467,-470.82,0.00017534,2]
[363359731,1748693445478,-430.0,0.00017534,2]
[363359732,1748693445487,-430.0,0.00017534,2]
[363359733,1748693445497,-430.0,0.00017534,2]
[363359734,1748693445507,-265.26408432,0.00017534,2]
[363359735,1748693445626,-454.32833795,0.00017534,2]
[363359736,1748693445636,-538.68,0.00017534,2]
[363359737,1748693445646,-168.85,0.00017534,2]
[363359738,1748693445655,-430.0,0.00017534,2]
[363359739,1748693445665,-485.91,0.00017534,2]
[363359740,1748693445675,-430.0,0.00017534,2]
[363359741,1748693445685,-153.22,0.00017534,2]
[363359742,1748693445694,-430.0,0.00017534,2]
[363359743,1748693445706,-430.0,0.00017534,2]
[363359744,1748693445716,-430.0,0.00017534,2]
[363359745,1748693445726,-621.82,0.00017534,2]
[363359746,1748693445736,-533.76,0.00017534,2]
[363359747,1748693445745,-430.0,0.00017534,2]
[363359748,1748693445756,-430.0,0.00017534,2]
[363359749,1748693445767,-430.0,0.00017534,2]
[363359750,1748693445777,-430.0,0.00017534,2]
[363359751,1748693445787,-430.0,0.00017534,2]
[363359752,1748693445797,-430.0,0.00017534,2]
[363359753,1748693445806,-430.0,0.00017534,2]
[363359754,1748693445817,-209.39,0.00017534,2]
[363359755,1748693445827,-430.0,0.00017534,2]
[363359756,1748693445837,-430.0,0.00017534,2]
[363359758,1748693445847,-258.44,0.00017534,2]
[363359759,1748693445857,-160.0,0.00017807,2]
[363359760,1748693445867,-430.0,0.00017808,2]
[363359761,1748693445876,-430.0,0.00017808,2]
[363359762,1748693445885,-485.91,0.00017808,2]
[363359763,1748693445894,-430.0,0.00017808,2]
[363359765,1748693445903,-430.0,0.00017808,2]
[363359766,1748693445913,-430.0,0.00017808,2]
[363359767,1748693445922,-621.82,0.00017808,2]
[363359768,1748693445933,-533.76,0.00017808,2]
[363359769,1748693445943,-430.0,0.00017808,2]
[363359770,1748693445954,-430.0,0.00017808,2]
[363359771,1748693445964,-430.0,0.00017808,2]
[363359772,1748693445974,-430.0,0.00017808,2]
[363359773,1748693445983,-430.0,0.00017808,2]
[363359774,1748693445993,-430.0,0.00017808,2]
[363359775,1748693446003,-430.0,0.00017808,2]
[363359776,1748693446013,-430.0,0.00017808,2]
[363359777,1748693446023,-1703.81116084,0.000179,2]
[363359778,1748693446032,-162.74,0.00018,2]
[363359779,1748693446041,-181.80150617,0.00018004,2]
[363359780,1748693446051,-430.0,0.00018082,2]
[363359781,1748693446061,-430.0,0.00018082,2]
[363359782,1748693446071,-485.91,0.00018082,2]
[363359783,1748693446080,-430.0,0.00018082,2]
[363359784,1748693446090,-579.09614337,0.00018082,2]
[363359785,1748693446099,-430.0,0.00018082,2]
[363359786,1748693446109,-621.82,0.00018082,2]
[363359787,1748693446119,-533.76,0.00018082,2]
[363359788,1748693446128,-430.0,0.00018082,2]
[363359789,1748693446137,-364.03,0.00018082,2]
[363359790,1748693446147,-527.01,0.00018082,2]
[363359791,1748693446157,-430.0,0.00018082,2]
[363359792,1748693446166,-430.0,0.00018082,2]
[363359793,1748693446176,-430.0,0.00018082,2]
[363359794,1748693446185,-192.22871671,0.00018082,2]
[363359796,1748693446195,-430.0,0.00018082,2]
[363359798,1748693446205,-1703.81116083,0.00018141,2]
[363359800,1748693446215,-423.0,0.00018282,2]
[363359802,1748693446224,-423.0,0.00018309,2]
[363359804,1748693446235,-423.0,0.00018337,2]
[363359806,1748693446244,-430.0,0.00018356,2]
[363359808,1748693446254,-430.0,0.00018356,2]
[363359810,1748693446263,-485.91,0.00018356,2]
[363359812,1748693446272,-430.0,0.00018356,2]
[363359814,1748693446281,-430.0,0.00018356,2]
[363359816,1748693446291,-621.82,0.00018356,2]
[363359818,1748693446301,-533.76,0.00018356,2]
[363359820,1748693446311,-430.0,0.00018356,2]
[363359822,1748693446320,-430.0,0.00018356,2]
[363359824,1748693446329,-430.0,0.00018356,2]
[363359826,1748693446339,-430.0,0.00018356,2]
[363359828,1748693446349,-430.0,0.00018356,2]
[363359830,1748693446359,-423.0,0.00018364,2]
[363359832,1748693446368,-1703.81116083,0.00018383,2]
[363359833,1748693446377,-423.0,0.00018392,2]
[363359835,1748693446386,-423.0,0.00018419,2]
[363359836,1748693446395,-423.0,0.00018446,2]
[363359837,1748693446404,-423.0,0.00018474,2]
[363359838,1748693446414,-423.0,0.00018501,2]
[363359839,1748693446422,-423.0,0.00018529,2]
[363359840,1748693446431,-12664.98044988,0.00018533,2]
[363359841,1748693446441,-160.0,0.00018533,2]
[363359842,1748693446451,-160.0,0.00018533,2]
[363359843,1748693446460,-160.0,0.00018533,2]
[363359844,1748693446469,-212.77096907,0.00018533,2]
[363359845,1748693446478,-160.0,0.00018533,2]
[363359846,1748693446487,-160.0,0.00018533,2]
[363359847,1748693446495,-423.4608169,0.00018533,2]
[363359848,1748693446505,-842.5625,0.00018533,2]
[363359849,1748693446514,-229.3428821,0.00018533,2]
[363359850,1748693446523,-423.0,0.00018556,2]
[363359851,1748693446532,-423.0,0.00018583,2]
[363359852,1748693446541,-423.0,0.00018611,2]
[363359853,1748693446550,-1703.81116083,0.00018624,2]
[363359854,1748693446559,-430.0,0.0001863,2]
[363359855,1748693446568,-430.0,0.0001863,2]
[363359856,1748693446577,-485.91,0.0001863,2]
[363359857,1748693446585,-430.0,0.0001863,2]
[363359858,1748693446594,-430.0,0.0001863,2]
[363359859,1748693446604,-621.82,0.0001863,2]
[363359860,1748693446613,-533.76,0.0001863,2]
[363359861,1748693446622,-430.0,0.0001863,2]
[363359862,1748693446631,-430.0,0.0001863,2]
[363359863,1748693446641,-430.0,0.0001863,2]
[363359864,1748693446650,-430.0,0.0001863,2]
[363359865,1748693446659,-430.0,0.0001863,2]
[363359866,1748693446668,-423.0,0.00018638,2]
[363359867,1748693446677,-423.0,0.00018666,2]
[363359868,1748693446686,-423.0,0.00018693,2]
[363359869,1748693446695,-423.0,0.0001872,2]
[363359870,1748693446705,-423.0,0.00018748,2]
[363359871,1748693446714,-423.0,0.00018775,2]
[363359872,1748693446724,-423.0,0.00018803,2]
[363359873,1748693446734,-423.0,0.0001883,2]
[363359874,1748693446744,-423.0,0.00018857,2]
[363359875,1748693446753,-1703.81116083,0.00018866,2]
[363359877,1748693446766,-423.0,0.00018885,2]
[363359878,1748693446775,-1779.39128702,0.000189,2]
[363359880,1748693446785,-151.0,0.00018904,2]
[363359882,1748693446794,-294.787073,0.00018904,2]
[363359884,1748693446804,-151.0,0.00018904,2]
[363359885,1748693446814,-151.0,0.00018904,2]
[363359887,1748693446823,-385.985188,0.00018904,2]
[363359889,1748693446835,-430.0,0.00018904,2]
[363359890,1748693446845,-430.0,0.00018904,2]
[363359891,1748693446854,-485.91,0.00018904,2]
[363359892,1748693446863,-430.0,0.00018904,2]
[363359894,1748693446873,-430.0,0.00018904,2]
[363359896,1748693446882,-621.82,0.00018904,2]
[363359898,1748693446892,-533.76,0.00018904,2]
[363359899,1748693446901,-430.0,0.00018904,2]
[363359900,1748693446911,-430.0,0.00018904,2]
[363359902,1748693446921,-430.0,0.00018904,2]
[363359903,1748693446931,-430.0,0.00018904,2]
[363359904,1748693446941,-430.0,0.00018904,2]
[363359905,1748693446952,-423.31774589,0.00018912,2]
[363359906,1748693446961,-1703.81116083,0.00019107,2]
[363359907,1748693446971,-430.0,0.00019178,2]
[363359908,1748693446981,-430.0,0.00019178,2]
[363359909,1748693446991,-430.0,0.00019178,2]
[363359910,1748693447000,-430.0,0.00019178,2]
[363359911,1748693447010,-485.91,0.00019178,2]
[363359912,1748693447019,-189.60991208,0.00019178,2]
[363359913,1748693447028,-430.0,0.00019178,2]
[363359914,1748693447038,-621.82,0.00019178,2]
[363359915,1748693447048,-533.76,0.00019178,2]
[363359916,1748693447057,-430.0,0.00019178,2]
[363359917,1748693447067,-430.0,0.00019178,2]
[363359918,1748693447076,-430.0,0.00019178,2]
[363359919,1748693447085,-183.79,0.00019178,2]
[363359920,1748693447094,-430.0,0.00019178,2]
[363359921,1748693447104,-385.36366285,0.00019178,2]
[363359922,1748693447114,-151.0,0.00019178,2]
[363359923,1748693447124,-371.313753,0.00019178,2]
[363359924,1748693447134,-156.587,0.00019233,2]
[363359925,1748693447144,-162.380719,0.00019288,2]
[363359926,1748693447154,-168.3888056,0.00019343,2]
[363359927,1748693447165,-1703.81116083,0.00019348,2]
[363359928,1748693447175,-174.61919141,0.00019398,2]
[363359929,1748693447185,-151.0,0.00019452,2]
[363359930,1748693447194,-430.0,0.00019452,2]
[363359931,1748693447205,-430.0,0.00019452,2]
[363359932,1748693447214,-485.91,0.00019452,2]
[363359933,1748693447224,-430.0,0.00019452,2]
[363359934,1748693447233,-621.82,0.00019452,2]
[363359935,1748693447242,-533.76,0.00019452,2]
[363359936,1748693447252,-430.0,0.00019452,2]
[363359937,1748693447262,-430.0,0.00019452,2]
[363359938,1748693447271,-430.0,0.00019452,2]
[363359939,1748693447281,-430.0,0.00019452,2]
[363359940,1748693447290,-181.08010149,0.00019453,2]
[363359941,1748693447300,-187.78006525,0.00019508,2]
[363359942,1748693447310,-194.72792766,0.00019563,2]
[363359943,1748693447320,-1703.81116083,0.0001959,2]
[363359944,1748693447329,-201.93286099,0.00019618,2]
[363359945,1748693447339,-700.0,0.00019664,2]
[363359946,1748693447349,-181.80150617,0.00019669,2]
[363359947,1748693447358,-209.40437684,0.00019673,2]
[363359948,1748693447368,-430.0,0.00019726,2]
[363359949,1748693447378,-291.32,0.00019726,2]
[363359950,1748693447388,-485.91,0.00019726,2]
[363359951,1748693447397,-430.0,0.00019726,2]
[363359952,1748693447406,-621.82,0.00019726,2]
[363359953,1748693447416,-533.76,0.00019726,2]
[363359954,1748693447425,-430.0,0.00019726,2]
[363359955,1748693447435,-430.0,0.00019726,2]
[363359956,1748693447444,-430.0,0.00019726,2]
[363359957,1748693447455,-430.0,0.00019726,2]
[363359958,1748693447465,-217.15233878,0.00019728,2]
[363359959,1748693447474,-225.18697532,0.00019783,2]
[363359960,1748693447483,-1703.81116083,0.00019831,2]
[363359961,1748693447494,-359.87347867,0.00019838,2]
[363359962,1748693447503,-727.283,0.0001994,2]
[363359963,1748693447513,-430.0,0.0002,2]
[363359964,1748693447523,-485.91,0.0002,2]
[363359965,1748693447532,-430.0,0.0002,2]
[363359966,1748693447542,-621.82,0.0002,2]
[363359967,1748693447551,-533.76,0.0002,2]
[363359968,1748693447562,-430.0,0.0002,2]
[363359969,1748693447572,-430.0,0.0002,2]
[363359970,1748693447581,-430.0,0.0002,2]
[363359971,1748693447591,-469.07,0.0002,2]
[363359972,1748693447601,-1703.81116083,0.00020072,2]
[363359973,1748693447610,-151.0,0.00020273,2]
[363359974,1748693447619,-151.0,0.00020273,2]
[363359975,1748693447629,-151.0,0.00020273,2]
[363359976,1748693447638,-385.985188,0.00020273,2]
[363359977,1748693447648,-430.0,0.00020273,2]
[363359978,1748693447657,-485.91,0.00020273,2]
[363359979,1748693447667,-430.0,0.00020273,2]
[363359980,1748693447676,-621.82,0.00020273,2]
[363359981,1748693447686,-533.76,0.00020273,2]
[363359982,1748693447695,-430.0,0.00020273,2]
[363359983,1748693447706,-258.0,0.00020273,2]
[363359984,1748693447715,-430.0,0.00020273,2]
[363359985,1748693447725,-500.0,0.000203,2]
[363359986,1748693447734,-1703.81116083,0.00020314,3]
[363359987,1748693447745,-151.0,0.00020547,2]
[363359988,1748693447756,-430.0,0.00020547,2]
[363359989,1748693447768,-485.91,0.00020547,2]
[363359990,1748693447778,-365.57,0.00020547,2]
[363359991,1748693447787,-621.82,0.00020547,2]
[363359992,1748693447798,-533.76,0.00020547,2]
[363359993,1748693447807,-430.0,0.00020547,2]
[363359994,1748693447817,-430.0,0.00020547,2]
[363359995,1748693447826,-500.0,0.00020555,2]
[363359996,1748693447837,-1703.81116083,0.00020555,3]
[363359997,1748693447847,-750.86,0.000206,2]
[363359998,1748693447857,-2815.81,0.000206,2]
[363359999,1748693447866,-6912.06,0.000206,2]
[363360000,1748693447876,-500.0,0.00020731,2]
[363360001,1748693447886,-500.0,0.00020756,2]
[363360002,1748693447895,-600.0,0.00020756,2]
[363360003,1748693447905,-700.0,0.0002076,2]
[363360004,1748693447915,-1703.81116083,0.00020797,4]
[363360005,1748693447925,-430.0,0.00020821,2]
[363360006,1748693447934,-485.91,0.00020821,2]
[363360007,1748693447944,-621.82,0.00020821,2]
[363360008,1748693447955,-533.76,0.00020821,2]
[363360009,1748693447964,-430.0,0.00020821,2]
[363360010,1748693447973,-430.0,0.00020821,2]
[363360011,1748693447983,-500.0,0.00020848,2]
[363360012,1748693447992,-1015305.21928,0.00020999,2]
[363360013,1748693448002,-3000.0,0.00021,2]
[363360014,1748693448011,-155.372,0.00021,2]
[363360015,1748693448021,-3000.0,0.0002101,2]
[363360016,1748693448030,-3000.0,0.0002102,2]
[363360017,1748693448040,-3000.0,0.0002103,2]
[363360018,1748693448050,-1703.81116083,0.00021038,4]
[363360019,1748693448060,-3000.0,0.0002104,2]
[363360020,1748693448070,-3000.0,0.0002105,2]
[363360021,1748693448080,-3000.0,0.0002106,2]
[363360022,1748693448091,-3000.0,0.0002107,2]
[363360023,1748693448100,-500.0,0.00021073,2]
[363360024,1748693448111,-3000.0,0.0002108,2]
[363360025,1748693448121,-3000.0,0.0002109,2]
[363360026,1748693448131,-151.0,0.00021095,2]
[363360027,1748693448142,-151.0,0.00021095,2]
[363360028,1748693448153,-151.0,0.00021095,2]
[363360029,1748693448164,-385.985188,0.00021095,2]
[363360030,1748693448173,-430.0,0.00021095,2]
[363360031,1748693448184,-485.91,0.00021095,2]
[363360032,1748693448194,-621.82,0.00021095,2]
[363360033,1748693448207,-533.76,0.00021095,2]
[363360034,1748693448217,-430.0,0.00021095,2]
[363360035,1748693448228,-430.0,0.00021095,2]
[363360036,1748693448238,-3000.0,0.000211,2]
[363360037,1748693448248,-3000.0,0.0002111,2]
[363360038,1748693448258,-3000.0,0.0002112,2]
[363360039,1748693448268,-364.3142842,0.00021123,2]
[363360040,1748693448278,-3000.0,0.0002113,2]
[363360041,1748693448289,-3000.0,0.0002114,2]
[363360042,1748693448298,-3000.0,0.0002115,2]
[363360043,1748693448307,-3000.0,0.0002116,2]
[363360044,1748693448317,-3000.0,0.0002117,2]
[363360045,1748693448328,-3000.0,0.0002118,2]
[363360046,1748693448338,-3000.0,0.0002119,2]
[363360047,1748693448346,-3000.0,0.000212,2]
[363360048,1748693448356,-3000.0,0.0002121,2]
[363360049,1748693448366,-3000.0,0.0002122,2]
[363360050,1748693448376,-3000.0,0.0002123,2]
[363360051,1748693448386,-3000.0,0.0002124,2]
[363360052,1748693448396,-3000.0,0.0002125,2]
[363360053,1748693448406,-3000.0,0.0002126,2]
[363360054,1748693448416,-3000.0,0.0002127,2]
[363360055,1748693448533,-1703.81116083,0.00021279,5]
[363360056,1748693448552,-3000.0,0.0002128,2]
[363360057,1748693448563,-3000.0,0.0002129,2]
[363360058,1748693448573,-3000.0,0.000213,2]
[363360059,1748693448583,-1000.0,0.00021304,2]
[363360060,1748693448593,-1200.0,0.00021304,2]
[363360061,1748693448603,-3000.0,0.0002131,2]
[363360062,1748693448612,-3000.0,0.0002132,2]
[363360063,1748693448622,-3000.0,0.0002133,2]
[363360064,1748693448632,-181.80150617,0.00021335,2]
[363360065,1748693448641,-3000.0,0.0002134,2]
[363360066,1748693448651,-3000.0,0.0002135,2]
[363360067,1748693448661,-3000.0,0.0002136,2]
[363360068,1748693448671,-151.0,0.00021369,2]
[363360069,1748693448681,-430.0,0.00021369,2]
[363360070,1748693448690,-485.91,0.00021369,2]
[363360071,1748693448700,-621.82,0.00021369,2]
[363360072,1748693448710,-533.76,0.00021369,2]
[363360073,1748693448720,-430.0,0.00021369,2]
[363360074,1748693448739,-391.79,0.00021369,2]
[363360075,1748693448752,-3000.0,0.0002137,2]
[363360076,1748693448764,-3000.0,0.0002138,2]
[363360077,1748693448775,-3000.0,0.0002139,2]
[363360078,1748693448785,-5470.98,0.00021392,2]
[363360079,1748693448795,-3000.0,0.000214,2]
[363360080,1748693448805,-53530.39,0.000214,2]
[363360081,1748693448815,-3000.0,0.0002141,2]
[363360082,1748693448826,-4803.512304,0.0002142,2]
[363360083,1748693448836,-250.0,0.00021484,2]
[363360084,1748693448847,-1703.81116083,0.00021521,5]
[363360085,1748693448858,-207.4,0.00021565,2]
[363360086,1748693448869,-5000.0,0.00021565,2]
[363360087,1748693448879,-1000.0,0.00021621,2]
[363360088,1748693448888,-578.83,0.00021643,2]
[363360089,1748693448899,-485.91,0.00021643,2]
[363360090,1748693448909,-621.82,0.00021643,2]
[363360091,1748693448919,-533.76,0.00021643,2]
[363360092,1748693448929,-443.34,0.00021643,2]
[363360093,1748693448939,-1703.81116083,0.00021762,5]
[363360094,1748693448950,-351.996922,0.00021781,2]
[363360095,1748693448961,-572.2963003,0.00021781,2]
[363360096,1748693448971,-750.86,0.000218,2]
[363360097,1748693448981,-2815.81,0.000218,2]
[363360098,1748693448991,-6912.06,0.000218,2]
[363360099,1748693449001,-1523.98449779,0.00021851,2]
[363360100,1748693449011,-1800.0,0.00021851,2]
[363360101,1748693449022,-700.0,0.00021856,2]
[363360102,1748693449032,-160.56326687,0.00021898,2]
[363360103,1748693449042,-151.0,0.00021898,2]
[363360104,1748693449052,-151.0,0.00021898,2]
[363360105,1748693449062,-385.985188,0.00021898,2]
[363360106,1748693449072,-1768.69,0.000219,2]
[363360107,1748693449083,-322.41522888,0.000219,2]
[363360108,1748693449094,-200.0,0.000219,3]
[363360109,1748693449104,-151.0,0.00021917,2]
[363360110,1748693449114,-526.86,0.00021917,2]
[363360111,1748693449125,-485.91,0.00021917,2]
[363360112,1748693449134,-621.82,0.00021917,2]
[363360113,1748693449145,-533.76,0.00021917,2]
[363360114,1748693449155,-240.0,0.00021918,3]
[363360115,1748693449166,-150.0,0.00021984,2]
[363360116,1748693449176,-481.91120644,0.00021984,2]
[363360117,1748693449186,-2000.0,0.00022,2]
[363360118,1748693449196,-502.08399502,0.00022,2]
[363360119,1748693449207,-2000.0,0.00022,2]
[363360120,1748693449218,-150.0,0.00022,30]
[363360121,1748693449228,-187.0,0.00022,2]
[363360122,1748693449239,-480.0,0.00022,2]
[363360123,1748693449248,-1703.81116083,0.00022003,6]
[363360124,1748693449258,-243.487,0.00022042,2]
[363360125,1748693449268,-150.0,0.00022042,2]